fUST/lending_fUST_20260428
["ID","MTS","AMOUNT","RATE_DAILY","PERIOD"]
[421277243,1777323064783,-500.0,0.00019178,2]
[421277244,1777323064792,-590.00709385,0.00019178,2]
[421277245,1777323064802,-500.0,0.00019178,2]
[421277246,1777323064811,-500.0,0.00019178,2]
[421277247,1777323064820,-500.0,0.00019178,2]
[421277248,1777323064830,-522.52941532,0.00019178,2]
[421277249,1777323064839,-619.62140262,0.00019178,2]
[421277250,1777323064849,-500.0,0.00019178,2]
[421277251,1777323064858,-532.9,0.00019178,2]
[421277252,1777323064868,-500.0,0.00019178,2]
[421277253,1777323064877,-500.0,0.00019178,2]
[421277254,1777323064887,-500.0,0.00019178,2]
[421277255,1777323064897,-500.0,0.00019178,2]
[421277256,1777323064906,-500.0,0.00019178,2]
[421277257,1777323064916,-500.0,0.00019178,2]
[421277258,1777323064925,-500.0,0.00019178,2]
[421277259,1777323064934,-522.90888887,0.00019178,2]
[421277260,1777323064943,-500.0,0.00019178,2]
[421277261,1777323064952,-538.85,0.00019178,2]
[421277262,1777323064962,-500.0,0.00019178,2]
[421277263,1777323064971,-500.0,0.00019178,2]
[421277264,1777323064980,-500.0,0.00019178,2]
[421277265,1777323064990,-500.0,0.00019178,2]
[421277266,1777323065000,-500.0,0.00019178,2]
[421277267,1777323065010,-500.0,0.00019178,2]
[421277268,1777323065019,-500.0,0.00019178,2]
[421277269,1777323065029,-500.0,0.00019178,2]
[421277270,1777323065038,-500.0,0.00019178,2]
[421277271,1777323065048,-500.0,0.00019178,2]
[421277272,1777323065057,-543.42242364,0.00019178,2]
[421277273,1777323065067,-500.0,0.00019178,2]
[421277274,1777323065076,-625.39,0.00019178,2]
[421277275,1777323065086,-500.0,0.00019178,2]
[421277276,1777323065095,-500.0,0.00019178,2]
[421277277,1777323065105,-500.0,0.00019178,2]
[421277278,1777323065116,-500.0,0.00019178,2]
[421277279,1777323065126,-500.0,0.00019178,2]
[421277280,1777323065136,-500.0,0.00019178,2]
[421277281,1777323065145,-500.0,0.00019178,2]
[421277282,1777323065155,-500.0,0.00019178,2]
[421277283,1777323065314,-500.0,0.00019178,2]
[421277284,1777323065332,-500.0,0.00019178,2]
[421277285,1777323065341,-500.0,0.00019178,2]
[421277286,1777323065351,-500.0,0.00019178,2]
[421277287,1777323065360,-500.0,0.00019178,2]
[421277288,1777323065370,-500.0,0.00019178,2]
[421277289,1777323065380,-500.0,0.00019178,2]
[421277290,1777323065390,-558.88,0.00019178,2]
[421277291,1777323065399,-500.0,0.00019178,2]
[421277292,1777323065409,-500.0,0.00019178,2]
[421277293,1777323065418,-637.44596741,0.00019178,2]
[421277294,1777323065428,-215.18155621,0.00019178,2]
[421277295,1777323065438,-585.34,0.00019178,2]
[421277296,1777323065448,-520.7,0.00019178,2]
[421277297,1777323065459,-500.0,0.00019178,2]
[421277298,1777323065468,-500.0,0.00019178,2]
[421277299,1777323065478,-500.0,0.00019178,2]
[421277300,1777323065487,-500.0,0.00019178,2]
[421277301,1777323065497,-500.0,0.00019178,2]
[421277302,1777323065507,-170.34513209,0.00019178,2]
[421277303,1777323065517,-500.0,0.00019178,2]
[421277304,1777323065526,-500.0,0.00019178,2]
[421277305,1777323065536,-500.0,0.00019178,2]
[421277306,1777323065545,-500.0,0.00019178,2]
[421277307,1777323065555,-509.59,0.00019178,2]
[421277308,1777323065565,-500.0,0.00019178,2]
[421277309,1777323065575,-500.0,0.00019178,2]
[421277310,1777323065584,-500.0,0.00019178,2]
[421277311,1777323065593,-500.0,0.00019178,2]
[421277312,1777323065603,-500.0,0.00019178,2]
[421277313,1777323065613,-500.0,0.00019178,2]
[421277314,1777323065622,-500.0,0.00019178,2]
[421277315,1777323065632,-500.0,0.00019178,2]
[421277316,1777323065642,-595.88689595,0.00019178,2]
[421277317,1777323065652,-500.0,0.00019178,2]
[421277318,1777323065661,-500.0,0.00019178,2]
[421277319,1777323065671,-213.77839068,0.00019178,2]
[421277320,1777323066285,-151.0,0.00019,2]
[421277321,1777323066295,-151.0,0.00019078,2]
[421277322,1777323066306,-286.22160932,0.00019178,2]
[421277323,1777323066315,-500.0,0.00019178,2]
[421277324,1777323066325,-500.0,0.00019178,2]
[421277325,1777323066334,-500.0,0.00019178,2]
[421277326,1777323066346,-237.29934058,0.00019178,2]
[421277327,1777323066356,-329.03894881,0.00019178,2]
[421277328,1777323066555,-173.691,0.00016287,2]
[421277329,1777323066565,-151.0,0.00019,2]
[421277330,1777323066575,-1000.0,0.00019,2]
[421277331,1777323066584,-6.35429721,0.00019078,2]
[421277332,1777323066789,-201.79815879,0.00019078,2]
[421277333,1777323066799,-170.96105119,0.00019178,2]
[421277334,1777323066809,-500.0,0.00019178,2]
[421277335,1777323066819,-500.0,0.00019178,2]
[421277336,1777323066829,-423.26121397,0.00019178,2]
[421277337,1777323615311,620.80064755,0.00024129,120]
[421277369,1777324231806,-259.2292231,0.00013699,2]
[421277429,1777324240444,-300.18062377,0.00013699,2]
[421277464,1777324243132,-440.59015313,0.00013699,2]
[421277465,1777324243142,-615.0,0.00013699,2]
[421277466,1777324243151,-150.0,0.00014366,2]
[421277467,1777324243160,-185.0,0.00016365,2]
[421277468,1777324243170,-177.0,0.00016366,2]
[421277469,1777324243179,-200.0,0.00016729,2]
[421277470,1777324243189,-160.0,0.00017482,2]
[421277471,1777324243198,-300.0,0.00017698,2]
[421277472,1777324243208,-341.20760283,0.00017699,2]
[421277473,1777324243217,-500.0,0.00017699,2]
[421277474,1777324243226,-500.0,0.00017699,2]
[421277475,1777324243235,-272.80065451,0.00017699,2]
[421277477,1777324243244,-523.46517747,0.00017699,2]
[421277479,1777324243254,-3598.73828523,0.000177,2]
[421277480,1777324243266,-1420.0,0.000177,2]
[421277485,1777324246654,-11299.82489188,0.000177,2]
[421277487,1777324246663,-51214.50307664,0.000177,2]
[421277505,1777324508819,5508.3,0.00025053,120]
[421277513,1777324903231,10000.0,0.0002,120]
[421277514,1777324922476,10000.0,0.00024,120]
[421277515,1777324931814,10000.0,0.00024,120]
[421277516,1777324939968,10000.0,0.00024,120]
[421277517,1777324947873,10000.0,0.00024,120]
[421277518,1777324955350,10000.0,0.00024,120]
[421277519,1777324962927,5801.0,0.00024,120]
[421277520,1777325362129,-192.91372704,0.00013447,2]
[421277521,1777325362151,-192.91372702,0.0001351,2]
[421277522,1777325362177,-150.0,0.00013547,2]
[421277523,1777325362201,-613.0,0.00013547,2]
[421277524,1777325362224,-192.91372702,0.00013573,2]
[421277525,1777325362246,-160.0,0.00013673,2]
[421277526,1777325362269,-338.18354668,0.00013699,2]
[421277527,1777325371133,-614.46,0.00013699,2]
[421277557,1777325438389,-47.35645332,0.00013699,2]
[421277558,1777325438398,-177.0,0.00015547,2]
[421277559,1777325438407,-185.0,0.00016597,2]
[421277560,1777325438416,-204.0,0.00017547,2]
[421277561,1777325438426,-500.0,0.00017699,2]
[421277562,1777325438435,-300.0,0.00017699,2]
[421277563,1777325438444,-1138.0,0.00017699,2]
[421277564,1777325438453,-2448.64354668,0.000177,2]
[421277565,1777325438497,-25938.88429672,0.000177,2]
[421277566,1777325438506,-1213.87988484,0.0001772,2]
[421277567,1777325438516,-743.8773511,0.0001782,2]
[421277568,1777325438525,-1213.87988483,0.00018031,2]
[421277569,1777325438534,-2150.738,0.0001806,2]
[421277570,1777325438543,-282.47,0.0001833,2]
[421277571,1777325438553,-250.77908829,0.00018794,2]
[421277572,1777325438562,-500.0,0.00018845,2]
[421277573,1777325438572,-404.36207729,0.00018857,2]
[421277574,1777325438581,-151.5,0.00018903,2]
[421277575,1777325438590,-294.69239424,0.00019076,2]
[421277576,1777325438598,-22554.54656723,0.00019077,2]
[421277577,1777325438608,-294.69239422,0.00019077,2]
[421277578,1777325438617,-68960.27140133,0.00019078,2]
[421277579,1777325438627,-294.69239422,0.00019078,2]
[421277580,1777325438636,-500.0,0.00019176,2]
[421277581,1777325438644,-227.0446757,0.00019176,2]
[421277582,1777325438654,-151.5,0.00019177,2]
[421277583,1777325438663,-833.40440903,0.00019177,2]
[421277584,1777325438672,-833.40440903,0.00019177,2]
[421277585,1777325438681,-833.40440903,0.00019177,2]
[421277586,1777325438690,-833.40440903,0.00019177,2]
[421277587,1777325438699,-833.40440903,0.00019177,2]
[421277588,1777325438708,-833.40440903,0.00019177,2]
[421277589,1777325438718,-833.40440903,0.00019177,2]
[421277590,1777325438727,-833.40440903,0.00019177,2]
[421277591,1777325438736,-833.40440903,0.00019177,2]
[421277592,1777325438746,-833.40440903,0.00019177,2]
[421277593,1777325438756,-833.40440903,0.00019177,2]
[421277594,1777325438765,-833.40440903,0.00019177,2]
[421277595,1777325438774,-833.40440903,0.00019177,2]
[421277596,1777325438784,-833.40440903,0.00019177,2]
[421277597,1777325438793,-833.40440903,0.00019177,2]
[421277598,1777325438802,-833.40440903,0.00019177,2]
[421277599,1777325438811,-833.40440902,0.00019177,2]
[421277600,1777325438820,-833.40440902,0.00019177,2]
[421277601,1777325438829,-833.40440902,0.00019177,2]
[421277602,1777325438839,-833.40440902,0.00019177,2]
[421277603,1777325438848,-500.0,0.00019177,2]
[421277604,1777325438858,-500.0,0.00019177,2]
[421277605,1777325438867,-500.0,0.00019177,2]
[421277606,1777325438876,-500.0,0.00019177,2]
[421277607,1777325438885,-500.0,0.00019177,2]
[421277608,1777325438894,-500.0,0.00019177,2]
[421277609,1777325438903,-500.0,0.00019177,2]
[421277610,1777325438912,-500.0,0.00019177,2]
[421277611,1777325438921,-500.0,0.00019177,2]
[421277612,1777325438931,-500.0,0.00019177,2]
[421277613,1777325438940,-500.0,0.00019177,2]
[421277614,1777325438949,-500.0,0.00019177,2]
[421277615,1777325438958,-500.0,0.00019177,2]
[421277616,1777325438968,-500.0,0.00019177,2]
[421277617,1777325438977,-208.35,0.00019177,2]
[421277618,1777325438986,-500.0,0.00019177,2]
[421277619,1777325438995,-500.0,0.00019177,2]
[421277620,1777325439004,-500.0,0.00019177,2]
[421277621,1777325439013,-500.0,0.00019177,2]
[421277622,1777325439022,-500.0,0.00019177,2]
[421277623,1777325439032,-500.0,0.00019177,2]
[421277624,1777325439041,-500.0,0.00019177,2]
[421277625,1777325439050,-500.0,0.00019177,2]
[421277626,1777325439059,-500.0,0.00019177,2]
[421277627,1777325439069,-500.0,0.00019177,2]
[421277628,1777325439078,-500.0,0.00019177,2]
[421277629,1777325439088,-500.0,0.00019177,2]
[421277630,1777325439097,-500.0,0.00019177,2]
[421277631,1777325439106,-500.0,0.00019177,2]
[421277632,1777325439115,-500.0,0.00019177,2]
[421277633,1777325439124,-500.0,0.00019177,2]
[421277634,1777325439133,-500.0,0.00019177,2]
[421277635,1777325439142,-500.0,0.00019177,2]
[421277636,1777325439151,-500.0,0.00019177,2]
[421277637,1777325439160,-529.71089599,0.00019177,2]
[421277638,1777325439169,-500.0,0.00019177,2]
[421277639,1777325439178,-500.0,0.00019177,2]
[421277640,1777325439188,-426.52259822,0.00019177,2]
[421277641,1777325439197,-76.73878603,0.00019178,2]
[421277642,1777325439206,-500.0,0.00019178,2]
[421277643,1777325439216,-500.0,0.00019178,2]
[421277644,1777325439225,-500.0,0.00019178,2]
[421277645,1777325439235,-500.0,0.00019178,2]
[421277646,1777325439244,-500.0,0.00019178,2]
[421277647,1777325439253,-500.0,0.00019178,2]
[421277648,1777325439263,-500.0,0.00019178,2]
[421277649,1777325439272,-500.0,0.00019178,2]
[421277650,1777325439281,-500.0,0.00019178,2]
[421277651,1777325439290,-500.0,0.00019178,2]
[421277652,1777325439299,-500.0,0.00019178,2]
[421277653,1777325439308,-500.0,0.00019178,2]
[421277654,1777325439318,-500.0,0.00019178,2]
[421277655,1777325439327,-500.0,0.00019178,2]
[421277656,1777325439336,-500.0,0.00019178,2]
[421277657,1777325439346,-500.0,0.00019178,2]
[421277658,1777325439355,-500.0,0.00019178,2]
[421277659,1777325439365,-611.16,0.00019178,2]
[421277660,1777325439374,-550.56,0.00019178,2]
[421277661,1777325439384,-404.16687702,0.00019178,2]
[421277662,1777325439393,-500.0,0.00019178,2]
[421277663,1777325439402,-500.0,0.00019178,2]
[421277664,1777325439411,-582.05,0.00019178,2]
[421277665,1777325439420,-500.0,0.00019178,2]
[421277666,1777325439430,-500.0,0.00019178,2]
[421277667,1777325439440,-500.0,0.00019178,2]
[421277668,1777325439450,-500.0,0.00019178,2]
[421277669,1777325439459,-500.0,0.00019178,2]
[421277670,1777325439468,-522.52,0.00019178,2]
[421277671,1777325439477,-500.0,0.00019178,2]
[421277672,1777325439486,-500.0,0.00019178,2]
[421277673,1777325439495,-500.0,0.00019178,2]
[421277674,1777325439504,-500.0,0.00019178,2]
[421277675,1777325439514,-500.0,0.00019178,2]
[421277676,1777325439523,-500.0,0.00019178,2]
[421277677,1777325439532,-500.0,0.00019178,2]
[421277678,1777325439541,-500.0,0.00019178,2]
[421277679,1777325439550,-500.0,0.00019178,2]
[421277680,1777325439560,-500.0,0.00019178,2]
[421277681,1777325439569,-500.0,0.00019178,2]
[421277682,1777325439579,-200.07957909,0.00019178,2]
[421277683,1777325439588,-500.0,0.00019178,2]
[421277684,1777325439597,-500.0,0.00019178,2]
[421277685,1777325439606,-500.0,0.00019178,2]
[421277686,1777325439615,-500.0,0.00019178,2]
[421277687,1777325439624,-500.0,0.00019178,2]
[421277688,1777325439633,-500.0,0.00019178,2]
[421277689,1777325439642,-500.0,0.00019178,2]
[421277690,1777325439651,-500.0,0.00019178,2]
[421277691,1777325439660,-500.0,0.00019178,2]
[421277692,1777325439669,-500.0,0.00019178,2]
[421277693,1777325439678,-501.03023088,0.00019178,2]
[421277694,1777325439687,-500.0,0.00019178,2]
[421277695,1777325439696,-500.0,0.00019178,2]
[421277696,1777325439705,-500.0,0.00019178,2]
[421277697,1777325439714,-500.0,0.00019178,2]
[421277698,1777325439723,-500.0,0.00019178,2]
[421277699,1777325439732,-500.0,0.00019178,2]
[421277700,1777325439742,-500.0,0.00019178,2]
[421277701,1777325439751,-500.0,0.00019178,2]
[421277702,1777325439760,-500.0,0.00019178,2]
[421277703,1777325439771,-541.64982612,0.00019178,2]
[421277705,1777325439780,-500.0,0.00019178,2]
[421277707,1777325439789,-500.0,0.00019178,2]
[421277708,1777325439799,-500.0,0.00019178,2]
[421277709,1777325439808,-500.0,0.00019178,2]
[421277710,1777325439818,-572.04,0.00019178,2]
[421277711,1777325439827,-558.93,0.00019178,2]
[421277712,1777325439836,-500.0,0.00019178,2]
[421277713,1777325439845,-500.0,0.00019178,2]
[421277714,1777325439855,-500.0,0.00019178,2]
[421277715,1777325439864,-500.0,0.00019178,2]
[421277716,1777325439873,-543.36,0.00019178,2]
[421277717,1777325439882,-500.0,0.00019178,2]
[421277719,1777325439892,-500.0,0.00019178,2]
[421277720,1777325439901,-500.0,0.00019178,2]
[421277721,1777325439910,-599.33,0.00019178,2]
[421277722,1777325439920,-500.0,0.00019178,2]
[421277723,1777325439929,-500.0,0.00019178,2]
[421277724,1777325439938,-500.0,0.00019178,2]
[421277725,1777325439948,-231.03794149,0.00019178,2]
[421277726,1777325439957,-500.0,0.00019178,2]
[421277727,1777325439966,-529.59,0.00019178,2]
[421277728,1777325439975,-638.52,0.00019178,2]
[421277729,1777325439984,-500.0,0.00019178,2]
[421277730,1777325439994,-500.0,0.00019178,2]
[421277731,1777325440003,-500.0,0.00019178,2]
[421277732,1777325440012,-500.0,0.00019178,2]
[421277733,1777325440022,-500.0,0.00019178,2]
[421277734,1777325440031,-500.0,0.00019178,2]
[421277735,1777325440041,-500.0,0.00019178,2]
[421277736,1777325440050,-566.05,0.00019178,2]
[421277737,1777325440059,-500.0,0.00019178,2]
[421277738,1777325440068,-587.49,0.00019178,2]
[421277739,1777325440078,-500.0,0.00019178,2]
[421277740,1777325440087,-500.0,0.00019178,2]
[421277741,1777325440096,-614.76466996,0.00019178,2]
[421277742,1777325440105,-500.0,0.00019178,2]
[421277743,1777325440114,-500.0,0.00019178,2]
[421277744,1777325440123,-500.0,0.00019178,2]
[421277745,1777325440132,-547.44,0.00019178,2]
[421277746,1777325440140,-500.0,0.00019178,2]
[421277747,1777325440149,-500.0,0.00019178,2]
[421277748,1777325440158,-500.0,0.00019178,2]
[421277749,1777325440167,-177.3958986,0.00019178,2]
[421277750,1777325440176,-500.0,0.00019178,2]
[421277751,1777325440185,-500.0,0.00019178,2]
[421277752,1777325440194,-184.6415527,0.00019178,2]
[421277754,1777325440530,-315.3584473,0.00019178,2]
[421277756,1777325440539,-500.0,0.00019178,2]
[421277757,1777325440548,-184.6415527,0.00019178,2]
[421277758,1777325440560,-315.3584473,0.00019178,2]
[421277759,1777325440569,-500.0,0.00019178,2]
[421277760,1777325440579,-500.0,0.00019178,2]
[421277761,1777325440588,-500.0,0.00019178,2]
[421277762,1777325440598,-500.0,0.00019178,2]
[421277763,1777325440607,-500.0,0.00019178,2]
[421277764,1777325440616,-500.0,0.00019178,2]
[421277765,1777325440626,-317.17325148,0.00019178,2]
[421277773,1777325443303,-1213.87988483,0.00018343,2]
[421277774,1777325443313,-167.18605886,0.00018794,2]
[421277775,1777325443322,-182.82674852,0.00019178,2]
[421277776,1777325443333,-92.00834152,0.00019178,2]
[421277777,1777325443413,-407.99165848,0.00019178,2]
[421277778,1777325443422,-535.6,0.00019178,2]
[421277779,1777325443432,-500.0,0.00019178,2]
[421277780,1777325443441,-500.0,0.00019178,2]
[421277781,1777325443450,-559.30632444,0.00019178,2]
[421277782,1777325443459,-500.0,0.00019178,2]
[421277783,1777325443469,-500.0,0.00019178,2]
[421277784,1777325443478,-555.04255051,0.00019178,2]
[421277785,1777325443487,-61.07395442,0.00019178,2]
[421277786,1777325443500,-438.92604558,0.00019178,2]
[421277787,1777325443509,-500.0,0.00019178,2]
[421277788,1777325443518,-500.0,0.00019178,2]
[421277789,1777325443527,-500.0,0.00019178,2]
[421277790,1777325443537,-500.0,0.00019178,2]
[421277791,1777325443547,-500.0,0.00019178,2]
[421277792,1777325443556,-500.0,0.00019178,2]
[421277794,1777325443565,-500.0,0.00019178,2]
[421277796,1777325443574,-500.0,0.00019178,2]
[421277798,1777325443584,-500.0,0.00019178,2]
[421277799,1777325443593,-500.0,0.00019178,2]
[421277801,1777325443603,-500.0,0.00019178,2]
[421277802,1777325443612,-500.0,0.00019178,2]
[421277803,1777325443622,-500.0,0.00019178,2]
[421277804,1777325443631,-500.0,0.00019178,2]
[421277806,1777325443640,-500.0,0.00019178,2]
[421277807,1777325443649,-500.0,0.00019178,2]
[421277808,1777325443659,-400.83285085,0.00019178,2]
[421277809,1777325443673,-99.16714915,0.00019178,2]
[421277810,1777325443682,-500.0,0.00019178,2]
[421277811,1777325443692,-500.0,0.00019178,2]
[421277812,1777325443701,-500.0,0.00019178,2]
[421277813,1777325443710,-500.0,0.00019178,2]
[421277814,1777325443720,-500.0,0.00019178,2]
[421277815,1777325443729,-500.0,0.00019178,2]
[421277816,1777325443738,-500.0,0.00019178,2]
[421277817,1777325443747,-566.39815824,0.00019178,2]
[421277818,1777325443756,-500.0,0.00019178,2]
[421277819,1777325443765,-500.0,0.00019178,2]
[421277820,1777325443775,-500.0,0.00019178,2]
[421277821,1777325443784,-500.0,0.00019178,2]
[421277822,1777325443794,-585.7,0.00019178,2]
[421277823,1777325443804,-500.0,0.00019178,2]
[421277824,1777325443813,-500.0,0.00019178,2]
[421277825,1777325443823,-527.62,0.00019178,2]
[421277826,1777325443832,-557.79,0.00019178,2]
[421277827,1777325443842,-500.0,0.00019178,2]
[421277828,1777325443852,-500.0,0.00019178,2]
[421277829,1777325443861,-199.34957097,0.00019178,2]
[421277842,1777325446541,-167.18605886,0.00018794,2]
[421277843,1777325446550,-300.65042903,0.00019178,2]
[421277845,1777325446560,-227.30221631,0.00019178,2]
[421277848,1777325446810,-272.69778369,0.00019178,2]
[421277849,1777325446820,-500.0,0.00019178,2]
[421277850,1777325446830,-500.0,0.00019178,2]
[421277851,1777325446839,-216.09261163,0.00019178,2]
[421277852,1777325446849,-500.0,0.00019178,2]
[421277853,1777325446858,-500.0,0.00019178,2]
[421277854,1777325446868,-500.0,0.00019178,2]
[421277855,1777325446877,-500.0,0.00019178,2]
[421277856,1777325446886,-450.64047304,0.00019178,2]
[421277857,1777325446896,-500.0,0.00019178,2]
[421277858,1777325446905,-500.0,0.00019178,2]
[421277859,1777325446915,-500.0,0.00019178,2]
[421277860,1777325446924,-500.0,0.00019178,2]
[421277861,1777325446933,-505.67,0.00019178,2]
[421277862,1777325446944,-500.0,0.00019178,2]
[421277863,1777325446953,-500.0,0.00019178,2]
[421277864,1777325446963,-127.33088194,0.00019178,2]
[421277865,1777325446981,-372.66911806,0.00019178,2]
[421277866,1777325446991,-639.88850262,0.00019178,2]
[421277867,1777325447000,-176.30903206,0.00019178,2]
[421277868,1777325571508,238.50203595,0.00025057,120]
[421277869,1777325571543,168.54317894,0.00025057,120]
[421277870,1777325571788,238.50203595,0.00025057,120]
[421277871,1777325571859,223.01397907,0.00025057,120]
[421277872,1777325572149,223.01397907,0.00025057,120]
[421277873,1777325572426,223.01397907,0.00025057,120]
[421277874,1777325572722,223.01397907,0.00025057,120]
[421277875,1777325573017,223.01397907,0.00025057,120]
[421277876,1777325573314,223.01397907,0.00025057,120]
[421277877,1777325573617,223.01397907,0.00025057,120]
[421277878,1777325573909,223.01397907,0.00025057,120]
[421277879,1777325574233,223.01397907,0.00025057,120]
[421277880,1777325574885,223.01397907,0.00025057,120]
[421277881,1777325574925,223.01397907,0.00025057,120]
[421277882,1777325575099,223.01397907,0.00025057,120]
[421277883,1777325575377,223.01397907,0.00025057,120]
[421277884,1777325575689,223.01397907,0.00025057,120]
[421277885,1777325691466,238.50203594,0.00025057,120]
[421277886,1777325691501,223.01397905,0.00025057,120]
[421277887,1777325964707,1002.0,0.0002506,120]
[421277888,1777326442121,-408.71214082,0.00013699,2]
[421277889,1777326556103,-591.28785918,0.00013699,2]
[421277890,1777326556123,-615.0,0.00013699,2]
[421277891,1777326556144,-150.0,0.00014109,2]
[421277892,1777326556165,-177.0,0.00016109,2]
[421277893,1777326556185,-442.0,0.00016976,2]
[421277894,1777326556205,-117.48850243,0.00016976,2]
[421277895,1777326632259,-500.0,0.00017699,2]
[421277896,1777326632268,-204.0,0.00018109,2]
[421277897,1777326632278,-160.0,0.0001819,2]
[421277898,1777326632287,-537.6845,0.00018192,2]
[421277899,1777326632296,-2150.738,0.00018192,2]
[421277900,1777326632306,-425.06442059,0.00018247,2]
[421277901,1777326632315,-874.57542932,0.0001854,2]
[421277902,1777326632324,-455.9452987,0.0001854,2]
[421277903,1777326632334,-411.7037558,0.0001854,2]
[421277904,1777326632344,-300.0,0.00018699,2]
[421277905,1777326632353,-183.53090868,0.000187,2]
[421277906,1777326632362,-183.53090867,0.000187,2]
[421277907,1777326632372,-183.53090867,0.000187,2]
[421277908,1777326632381,-167.18605887,0.00018794,2]
[421277909,1777326632390,-257.0,0.000189,2]
[421277910,1777326632400,-319.89917169,0.00019,3]
[421277911,1777326632409,-217.92575572,0.00019,3]
[421277912,1777326632418,-500.0,0.00019076,2]
[421277914,1777326632429,-500.0,0.00019077,2]
[421277916,1777326632438,-571.14,0.00019077,2]
[421277917,1777326632447,-1014.4268809,0.00019077,2]
[421277918,1777326632457,-197.35058863,0.00019078,2]
[421277919,1777326632466,-71012.94505523,0.00019078,2]
[421277920,1777326632478,-12836.60096371,0.00019078,2]
[421277921,1777326632493,-5722.21950213,0.00019078,2]
[421277938,1777326638504,-21354.26379656,0.00019078,2]
[421277939,1777326638514,-10341.27365229,0.00019078,2]
[421277940,1777326638524,-433.08198877,0.00019166,2]
[421277941,1777326638536,-12.12077723,0.00019166,2]
[421277942,1777326638545,-151.0,0.00019166,2]
[421277943,1777326638555,-162.380719,0.00019166,2]
[421277944,1777326638564,-162.380719,0.00019166,2]
[421277945,1777326638574,-537.6845,0.00019166,2]
[421277946,1777326638584,-151.0,0.00019166,2]
[421277947,1777326638594,-158.93127299,0.00019174,2]
[421277948,1777326638603,-7189.8224848,0.00019175,2]
[421277949,1777326638613,-432.2997912,0.00019175,2]
[421277950,1777326638622,-520.87775565,0.00019177,2]
[421277951,1777326638632,-520.87775565,0.00019177,2]
[421277952,1777326638641,-520.87775565,0.00019177,2]
[421277953,1777326638650,-520.87775565,0.00019177,2]
[421277954,1777326638659,-520.87775564,0.00019177,2]
[421277955,1777326638669,-520.87775564,0.00019177,2]
[421277956,1777326638678,-520.87775564,0.00019177,2]
[421277957,1777326638688,-520.87775564,0.00019177,2]
[421277958,1777326638697,-520.87775564,0.00019177,2]
[421277959,1777326638706,-520.87775564,0.00019177,2]
[421277960,1777326638715,-520.87775564,0.00019177,2]
[421277961,1777326638725,-520.87775564,0.00019177,2]
[421277962,1777326638734,-520.87775564,0.00019177,2]
[421277963,1777326638743,-520.87775564,0.00019177,2]
[421277964,1777326638752,-520.87775564,0.00019177,2]
[421277965,1777326638762,-520.87775564,0.00019177,2]
[421277966,1777326638771,-4.45337506,0.00019178,2]
[421277967,1777326638780,-567.10657827,0.00019178,2]
[421277968,1777326638790,-500.0,0.00019178,2]
[421277969,1777326638799,-500.0,0.00019178,2]
[421277970,1777326638809,-500.0,0.00019178,2]
[421277971,1777326638818,-500.0,0.00019178,2]
[421277972,1777326638827,-500.0,0.00019178,2]
[421277973,1777326638837,-500.0,0.00019178,2]
[421277974,1777326638846,-525.0,0.00019178,2]
[421277975,1777326638855,-500.0,0.00019178,2]
[421277976,1777326638864,-576.00688574,0.00019178,2]